Cogmind - Beta 14 @@@ ROGUE MODE // 2025.03.14 @ 12:44:00 Player: silmarilion6 Result: Destroyed by D-53 Grenadier with Mini Grenade Launcher Performance ------------- Evolutions (0) 0 Regions Visited (2) 400 Robots Destroyed (9) 45 Value Destroyed (276) 276 Prototype IDs (0) 0 Alien Tech Used (0) 0 Bonus (0) 0 TOTAL SCORE: 721 Bonus ------- None Cogmind --------- Core Integrity 0/250 Matter 158/300 Energy 347/350 System Corruption 4% Temperature Cool (30) Movement Core (150) Ox2 Location -10/Mines Parts ------- > --- POWER (1) -------- (None) > --- PROPULSION (2) --- (None) > --- UTILITY (2) ------ Small Storage Unit High-capacity Battery > --- WEAPON (2) ------- (None) > --- INVENTORY (8) ---- Ion Engine Wheel Compact Wheel Large Matter Pod (0) Peak State ------------ > --- POWER ------------ Ion Engine > --- PROPULSION ------- Aluminum Leg Aluminum Leg > --- UTILITY ---------- Small Storage Unit High-capacity Battery > --- WEAPON ----------- Medium Laser Grenade Launcher > --- INVENTORY -------- Light Ion Engine Wheel Compact Wheel Improved Heat Sink Large Matter Pod EM Pulse Gun Small Laser Light Assault Rifle [Rating: 8] Favorites ----------- Power Ion Engine Engine Ion Engine Propulsion Aluminum Leg Treads Light Treads Leg Aluminum Leg Utility Small Storage Unit Storage Small Storage Unit Weapon Grenade Launcher Energy Gun Medium Laser Ballistic Gun Light Assault Rifle Launcher Grenade Launcher Build | -11 -10 -10 ------- Run | Yrd Mat Min Slots Evolved . | . . . Power . | . . . Propulsion . | . . . Utility . | . . . Weapon . | . . . Parts Attached 15 | 4 6 5 Power 1 | . 1 . Engine 1 | . 1 . Core . | . . . Reactor . | . . . Propulsion 4 | 2 2 . Treads 2 | 2 . . Leg 2 | . 2 . Wheel . | . . . Hover . | . . . Flight . | . . . Utility 2 | 1 1 . Device . | . . . Storage 2 | 1 1 . Processor . | . . . Hackware . | . . . Protection . | . . . Artifact . | . . . Weapon 8 | 1 2 5 Energy Gun 5 | 1 1 3 Energy Cannon . | . . . Ballistic Gun 1 | . . 1 Ballistic Cannon . | . . . Launcher 2 | . 1 1 Special Weapon . | . . . Impact Weapon . | . . . Slashing Weapon . | . . . Piercing Weapon . | . . . Special Melee Weapon . | . . . Unidentified Prototypes . | . . . Parts Lost 8 | . . 8 Power 1 | . . 1 Propulsion 2 | . . 2 Utility . | . . . Weapon 5 | . . 5 Highest Loss Streak 8 | . . 8 To Critical Strikes . | . . . Average Slot Usage (%) 91 | . 89 94 Engine 12 | . 12 13 Treads 2 | . 4 . Leg 24 | . 24 25 Storage 23 | . 20 28 Energy Gun 14 | . 14 14 Ballistic Gun 3 | . . 7 Launcher 9 | . 13 4 Peak Build Rating 8 | 4 7 8 Average Rating 5 | 3 6 6 On Entrance 3 | . 4 7 Naked Turns . | . . . Heaviest Build 19 | 7 19 19 Greatest Support 40 | 40 40 20 Greatest Overweight (x) 2 | . . 2 Average Overweight (x) . | . . . Largest Inventory Capacity 8 | 8 8 8 Average Capacity 7 | 6 8 8 Most Carried 8 | 8 8 8 Average Carried 7 | 5 7 6 Final Capacity 8 | 8 8 8 Final Carried 8 | 8 8 4 Class Distribution -------------------- 100% | Mutant Dominant Class ---------------- Mutant | -10/Materials Mutant | -10/Mines Resources | -11 -10 -10 ----------- Run | Yrd Mat Min Matter Collected 286 | 169 30 87 Remotely . | . . . Salvage Created 189 | . 61 128 Parts 12 | . 3 9 Haulers Intercepted . | . . . Recyclers Shooed . | . . . Parts Field Recycled . | . . . Retrieved Matter . | . . . Parts Self-Destructed . | . . . Prevented . | . . . Kills | -11 -10 -10 ------- Run | Yrd Mat Min Combat Hostiles Destroyed 9 | . 2 7 Guns 3 | . . 3 AOE 6 | . 2 4 Classes Destroyed 3 | . 1 2 Swarmer 3 | . . 3 Grunt 5 | . 2 3 Demolisher 1 | . . 1 Best Kill Streak 3 | . 2 3 Combat Bots Only 3 | . 2 3 Max Kills in Single Turn 3 | . 1 3 Gunslinging . | . . . Exploded 3 | . 1 3 Melee . | . . . Uniques/NPCs Destroyed . | . . . Combat | -11 -10 -10 -------- Run | Yrd Mat Min Hostile Shots Fired 37 | . 8 29 Missed 7 | . 3 4 Damage Taken 940 | . 57 883 Core 252 | . 12 240 Absorbed by Shields . | . . . Core Remaining (%) 100 | 100 . . Volleys Fired 26 | 2 3 21 Largest 2 | 1 2 2 Hottest 90 | 40 80 90 Shots Fired 45 | 2 6 37 Gun 37 | 2 3 32 Cannon . | . . . Launcher 8 | . 3 5 Special . | . . . Kinetic 10 | . . 10 Thermal 25 | . 3 22 Explosive 8 | . 3 5 Electromagnetic 2 | 2 . . Robot Hit Streak 9 | 2 2 9 Robot Miss Streak 3 | . 2 3 Penetration Max . | . . . Secondary Targets 1 | . . 1 Max Gunslinging Chain 1 | . . 1 Shots Hit Robots 30 | 2 3 25 Core Hits 21 | . 3 18 Critical Kills . | . . . Critical Parts Destroyed . | . . . Critical Strikes 2 | 1 . 1 Burn 1 | . . 1 Corrupt 1 | 1 . . Melee Attacks . | . . . Impact . | . . . Slashing . | . . . Piercing . | . . . Sneak Attacks . | . . . Combat Hostiles . | . . . Follow-up Attacks . | . . . Damage Inflicted 671 | 27 122 522 Guns 287 | 27 13 247 Cannons . | . . . Explosions 372 | . 109 263 Melee . | . . . Ramming 12 | . . 12 Kinetic 57 | . . 57 Thermal 203 | . 13 190 Explosive 372 | . 109 263 Electromagnetic 27 | 27 . . Impact . | . . . Slashing . | . . . Piercing . | . . . Highest Corruption 4 | . 4 4 Average Corruption 3 | . 3 4 Corruption Purged . | . . . Corruption Blocked . | . . . Effects 8 | . 3 5 Message Errors 1 | . . 1 Matter Fused 4 | . 2 2 Heat Flow Errors 2 | . 1 1 Data Loss (minor) 1 | . . 1 Overload Shots . | . . . Overflow Damage 15 | . . 15 Projectiles . | . . . Explosions 15 | . . 15 Melee . | . . . Knockbacks 1 | . . 1 Impact 1 | . . 1 Kinetic . | . . . Secondary . | . . . Self-Inflicted Damage . | . . . Shots . | . . . Rammed . | . . . Targets Rammed 1 | . . 1 Kicked 1 | . . 1 Crushed . | . . . Highest Temperature 165 | . 165 128 Average Temperature 46 | . 60 42 Received Heat Transfer 54 | . 30 24 Siege Activations . | . . . Robots Corrupted . | . . . Combat Hostiles . | . . . Parts Fried . | . . . Impact Corruptions . | . . . Robots Melted . | . . . Combat Hostiles . | . . . Parts Melted . | . . . Heat Transferred 619 | . 37 582 Parts Sabotaged . | . . . Parts Stolen . | . . . Parts Stripped . | . . . Power Chain Reactions . | . . . Alert | -11 -10 -10 ------- Run | Yrd Mat Min Peak Influence 226 | . 96 226 Initial 37 | . . 37 Average 73 | . 14 183 Maximum Alert Level 1 | . . 1 Low Security (%) 85 | 100 100 59 Level 1 14 | . . 40 Level 2 . | . . . Level 3 . | . . . Level 4 . | . . . Level 5 . | . . . High Security . | . . . Max Security . | . . . Squads Dispatched 2 | . 2 . Investigation . | . . . Extermination . | . . . Reinforcement 2 | . 2 . Assault . | . . . Garrison . | . . . Intercept . | . . . Searches Triggered . | . . . Construction Impeded . | . . . Haulers Reinforced . | . . . Active Scanning Responses . | . . . Cargo Convoy Interrupts . | . . . Stealth | -11 -10 -10 --------- Run | Yrd Mat Min Distress Signals . | . . . Communications Jammed . | . . . Distress Signals . | . . . Times Spotted 13 | . 5 8 Peak Tracking Total 3 | . 3 3 Tactical Retreats 1 | . . 1 Traps | -11 -10 -10 ------- Run | Yrd Mat Min Traps Triggered 3 | . 3 . Indirectly . | . . . Trap Hack Attempts . | . . . Triggered . | . . . Disarmed . | . . . Reprogrammed . | . . . Reused . | . . . Traps Extracted . | . . . Installed . | . . . Triggered . | . . . Machines | -11 -10 -10 ---------- Run | Yrd Mat Min Machines Disabled 1 | . . 1 Max in Single Turn 1 | . . 1 Machines Repaired . | . . . Machines Dismantled . | . . . Machines Sabotaged . | . . . Overloaded Fab Kills . | . . . Hacking | -11 -10 -10 --------- Run | Yrd Mat Min Machines Accessed . | . . . Terminals . | . . . Fabricators . | . . . Repair Stations . | . . . Recycling Units . | . . . Scanalyzers . | . . . Garrison Access . | . . . Total Hacks . | . . . Successful . | . . . Failed . | . . . Catastrophic . | . . . Database Lockouts . | . . . Manual . | . . . Terminals . | . . . Fabricators . | . . . Repair Stations . | . . . Recycling Units . | . . . Scanalyzers . | . . . Garrison Access . | . . . Terminal Hacks . | . . . Fabricator Hacks . | . . . Repair Station Hacks . | . . . Recycling Unit Hacks . | . . . Scanalyzer . | . . . Garrison Access Hacks . | . . . Unauthorized Hacks . | . . . Terminals . | . . . Fabricators . | . . . Repair Stations . | . . . Recycling Units . | . . . Scanalyzers . | . . . Garrison Access . | . . . Data Cores Recovered . | . . . Used . | . . . Hacking Detections . | . . . Full Trace Events . | . . . Feedback Events . | . . . Feedback Blocked . | . . . Robot Schematics Acquired . | . . . Robots Built . | . . . Authchips . | . . . Time . | . . . Total Robot Build Rating . | . . . Part Schematics Acquired . | . . . Parts Built . | . . . Authchips . | . . . Time . | . . . Total Part Build Rating . | . . . Parts Repaired . | . . . Time . | . . . Parts Recycled . | . . . Recycled Matter . | . . . Retrieved Matter . | . . . Retrieved Components . | . . . Parts Scanalyzed . | . . . Part Schematics Acquired . | . . . Parts Damaged . | . . . Bothacking | -11 -10 -10 ------------ Run | Yrd Mat Min Used RIF Installer . | . . . Robots Hacked . | . . . Non-combat . | . . . Combat . | . . . Robot Hacks Applied . | . . . Relay Couplers Released . | . . . Fabnet Peak Effective % . | . . . Robots Rewired . | . . . Allies Hacked . | . . . Hacks Repelled . | . . . Allies | -11 -10 -10 -------- Run | Yrd Mat Min Total Allies . | . . . Largest Group . | . . . Highest-Rated Group . | . . . Highest-Rated Ally . | . . . Total Orders . | . . . Ally Attacks . | . . . Total Damage . | . . . Kills . | . . . Allies Corrupted . | . . . Allies Melted . | . . . Intel | -11 -10 -10 ------- Run | Yrd Mat Min Robot Analysis Total . | . . . Derelict Logs Recovered . | . . . Drone Launches . | . . . Drone Recoveries . | . . . Exploration | -11 -10 -10 ------------- Run | Yrd Mat Min Turns Passed 457 | 83 208 166 Spaces Moved 255 | 48 126 81 Core 12 | 11 . 1 Treads 54 | 37 17 . Legs 189 | . 109 80 Wheels . | . . . Hover . | . . . Flight . | . . . Fastest Speed 50 | 50 120 120 Average Speed 125 | 134 125 120 Slowest Speed 160 | 160 160 150 Overloaded Moves . | . . . Propulsion Burnouts . | . . . Robots Hopped . | . . . Cave-ins Triggered . | . . . Exploration Rate (%) 13 | 5 16 19 Regions Visited 2 Branch Regions 1 Pre-discovered Areas . | . . . Known Exits Taken . | . . . Unknown Exits Taken 2 | 1 1 . Scrap Searched . | . . . Spaces Dug 9 | . . 9 Terrain Destroyed 63 | . 26 37 Melee . | . . . Projectile . | . . . AOE 63 | . 26 37 Terrain Rammed . | . . . Walls Destroyed . | . . . Machines Disabled . | . . . Actions | -11 -10 -10 --------- Run | Yrd Mat Min Total 345 | 63 167 115 Wait 32 | . 32 . Move 253 | 47 125 81 Hop . | . . . Pick Up 14 | 10 1 3 Fast Attach 4 | 2 2 . Attach 6 | 2 1 3 Detach . | . . . Swap 5 | . 3 2 Drop 4 | . . 4 Fire 26 | 2 3 21 Melee . | . . . Ram . | . . . Kick 1 | . . 1 Crush . | . . . Escape Stasis . | . . . Rewire . | . . . Trap . | . . . Miscellaneous . | . . . Route ------- -11/Scrapyard -10/Materials (discovered 2 exits: [*Min x2]) -10/Mines (discovered 1 exit: [*Mat]) History --------- Turn | Location | Event 19 | -11/Scrapyard | Discovered new exit (range 15) 84 | -11/Scrapyard | Entered Materials 134 | -10/Materials | Discovered new exit (range 15) 223 | -10/Materials | Discovered new exit (range 16) 292 | -10/Materials | Entered Mines 324 | -10/Mines | Build established: Mutant 375 | -10/Mines | Discovered new exit (range 9) 409 | -10/Mines | Assembled infested the area 445 | -10/Mines | Core integrity fell below 50% 451 | -10/Mines | Core integrity fell below 20% 458 | -10/Mines | Destroyed by D-53 Grenadier with Mini Grenade Launcher Last Messages --------------- 00449_ U-05 Engineer lays Concrete. 00450_ D-53 Grenadier heat damages Imp. Light Armor Plating, Shock Absorption System, Mni. Grenade Launcher, Cmb. Airjet. 00450_ U-05 Engineer builds a Wall. 00451_ 0P06|T7QQRG/R KOX3|:GH>8>,R 00451_ U-05 Engineer builds a Wall. 00452_ D-53 Grenadier heat damages Cmb. Airjet, Shock Absorption System, Launcher Guidance Computer, Imp. Light Armor Plating. 00452_ The unstable cave ceiling collapses. 00452_ Destroyed Shock Absorption System. 00452_ D-53 Grenadier overheating. 00453_ The unstable cave ceiling collapses. 00454_ U-05 Engineer lays Concrete. 00454_ Med. Laser destroyed. 00455_ U-05 Engineer builds a Wall. 00456_ D-53 Grenadier heat damages Imp. Light Armor Plating, Cmb. Airjet, Cmb. Airjet. 00456_ Sml. Laser destroyed. 00456_ U-05 Engineer destroyed. 00458_ The unstable cave ceiling collapses. Map ----- +----------------------------------------------------+ | ?????????????????????## % ####### #??????? | | ?????????????????????# = #???### ###????? | | ?????????????????????# ## ###??## # ####?? | | ?????????????????????## #######????# #?? | | ??????????????????????# ???????????# "" #?? | | ??????????????????????#????????????## " #?? | | ???????????????????????????????????# "" #?? | | ???????????????????????????????????# #?? | | ???????????????????????????????????# #?? | | ???????????????????????????????????# #?? | | ???????????????????????????????????# #?? | | ???????????????????????????????????#### ####?? | | ??????????????????????????????????????## #????? | | ???????????????????????????????????????# #????? | | ????????????????????????????# ?????????# #????? | | ??????????????????????????### ???????# #????? | | ?????????????????????????? ## ??????# #????? | | ?????????????????????????# ## ????# #????? | | ?????????????????????????# #### #????? | | ?????????????????????????# ### #????? | | ?????????????????????#####a ### #????? | | ???????????????????#?# #! ## #### ##????? | | ???????????????????# # u ## ????# ####??? | | ???????????????????# ##??????# #??? | | ???????????????????# #???????#### #??? | | ?????????????????????# @ #????#####?# #??? | | ?????????????????????# # #???## ### #??? | | ?????????????????????# # #??## ## #??? | | ?????????????????????## ##?## #??? | | ??????????????????????## ##?## #####??? | | ???????????????????????###% ##?## < ##??????? | | ???????????????????????? #] ?## ##??????? | | ???????????????????????? d ##[ #??????? | | ????????????????????????# ! *! #??????? | | ????????????????????????# # #### ##??????? | | ????????????????????????#######??## ##???????? | | ??????????????????????????????????#####????????? | | ???????????????????????????????????????????????? | | ???????????????????????????????????????????????? | | ???????????????????????????????????????????????? | | ???????????????????????????????????????????????? | | ???????????????????????????????????????????????? | | ???????????????????????????????????????????????? | | ???????????????????????????????????????????????? | | ???????????????????????????????????????????????? | | ???????????????????????????????????????????????? | | ???????????????????????????????????????????????? | | ???????????????????????????????????????????????? | | | | | +----------------------------------------------------+ Best States ------------- Heat Dissipation 25 Energy Generation 10 Energy Capacity 500 Matter Stores 229 Matter Capacity 300 Sight Range 16 Terrain Scan Density 10 Evasion (%) 55 Recoil Reduction 2 Item Schematics ----------------- None Robot Schematics ------------------ None Fabricated ------------ Nothing Alien Tech Used ----------------- None Achievements -------------- None Challenges ------------ None Game ------ Seed DefenseDeliveryShifter Manual? 0 Play Time 00:15:11 Cumulative 17.6 hours Start 2025.03.14 @ 12:27:51 End 2025.03.14 @ 12:44:00 Sessions 2 Manual Loads 0 Difficulty Rogue Special Mode None Game No. 24 Rogue 24 Adventurer 0 Explorer 0 Win Type - Total 0 Types 0/0/0/0/0/0/0/0/0 Lore% 11 Gallery% 16 Achievement% 16 Wizard Run 0 Options --------- Layout 0 ASCII 0 Keyboard 0 Movement Mouse Keybinds 0 Fullscreen 1 Font 18/Terminus Map View 38x25 Zoom Use 93% Tactical HUD 1 Map Filters NONE Filters NONE Steam 1 RUN: c013b8ff-3e35-44c7-8935-4c644a6cfbc7